bitfinex-derivatives/quotes_BTCF0:USTF0_20240817
["timestamp","ask_amount","ask_price","bid_price","bid_amount"]
[1723917769253,0.002,59452.0,59451.0,0.524768]
[1723917771149,0.002,59452.0,59451.0,0.617768]
[1723917772957,0.002,59452.0,59451.0,0.256968]
[1723917773252,0.002,59452.0,59451.0,0.617768]
[1723917775045,0.205067,59452.0,59451.0,0.163968]
[1723917775653,0.205067,59452.0,59451.0,0.23120348]
[1723917776345,0.205067,59452.0,59451.0,0.163968]
[1723917777355,0.205067,59452.0,59451.0,0.23120116]
[1723917777658,0.205067,59452.0,59451.0,0.163968]
[1723917777861,0.205067,59452.0,59451.0,0.23120167]
[1723917778055,0.298067,59452.0,59451.0,0.1009]
[1723917779861,0.298067,59452.0,59451.0,0.007]
[1723917780546,0.298067,59452.0,59451.0,0.070068]
[1723917781467,0.205067,59452.0,59451.0,0.13730167]
[1723917781652,0.205067,59452.0,59451.0,0.070068]
[1723917781961,0.065067,59452.0,59451.0,0.070068]
[1723917784562,0.065067,59452.0,59451.0,0.20008597]
[1723917785061,0.065067,59452.0,59451.0,0.163068]
[1723917785255,0.065067,59452.0,59451.0,0.20008665]
[1723917786057,0.0002523,59459.0,59451.0,0.13701865]
[1723917786257,0.0002523,59459.0,59458.0,0.58409347]
[1723917787670,0.0012523,59459.0,59458.0,0.58409347]
[1723917787853,0.0012523,59459.0,59458.0,0.51686]
[1723917788057,0.0012523,59459.0,59458.0,0.5289515]
[1723917788361,0.0012523,59459.0,59458.0,0.59615238]
[1723917788560,0.0022523,59459.0,59458.0,0.57935194]
[1723917788956,0.0022523,59459.0,59458.0,0.61636556]
[1723917789356,0.0012523,59459.0,59458.0,0.61636556]
[1723917789555,0.0012523,59459.0,59458.0,0.65437918]
[1723917789556,0.0022523,59459.0,59458.0,0.65437918]
[1723917790460,0.0022523,59459.0,59458.0,0.58035194]
[1723917790667,0.0022523,59459.0,59458.0,0.48735194]
[1723917790870,0.0022523,59459.0,59458.0,0.58035194]
[1723917791259,0.0022523,59459.0,59458.0,0.5299515]
[1723917791454,0.0022523,59459.0,59458.0,0.65437922]
[1723917793666,0.0022523,59459.0,59458.0,0.20057922]
[1723917793870,0.0022523,59459.0,59458.0,0.29357922]
[1723917794255,0.0022523,59459.0,59458.0,0.30426558]
[1723917794568,0.0022523,59459.0,59458.0,0.30426547]
[1723917794761,0.0022523,59459.0,59458.0,0.62805194]
[1723917795357,0.0022523,59459.0,59458.0,0.66506547]
[1723917795672,0.0022523,59459.0,59458.0,0.68186591]
[1723917796670,0.0022523,59459.0,59458.0,0.64485238]
[1723917798168,0.0022523,59459.0,59458.0,0.68186592]
[1723917799169,0.0022523,59459.0,59458.0,0.5776515]
[1723917799469,0.0022523,59459.0,59458.0,0.2168515]
[1723917799673,0.0022523,59459.0,59458.0,0.5776515]
[1723917802963,0.0022523,59459.0,59458.0,0.2168515]
[1723917803173,0.0022523,59459.0,59458.0,0.5776515]
[1723917804875,0.0022523,59459.0,59458.0,0.2168515]
[1723917805077,0.0022523,59459.0,59458.0,0.5776515]
[1723917805479,0.0022523,59459.0,59458.0,0.2168515]
[1723917805982,0.0022523,59459.0,59458.0,0.5776515]
[1723917806180,0.0022523,59459.0,59458.0,0.2168515]
[1723917806375,0.0022523,59459.0,59458.0,0.5776515]
[1723917807780,0.0022523,59459.0,59458.0,0.2168515]
[1723917807981,0.0022523,59459.0,59458.0,0.5776515]
[1723917810286,0.0022523,59459.0,59458.0,0.4846515]
[1723917810487,0.0022523,59459.0,59458.0,0.5776515]
[1723917811195,0.0022523,59459.0,59458.0,0.2168515]
[1723917811492,0.0022523,59459.0,59458.0,0.5776515]
[1723917814590,0.063053,59465.0,59464.0,0.063054]
[1723917814790,0.223053,59465.0,59464.0,0.11348798]
[1723917815190,0.16,59465.0,59464.0,0.11348798]
[1723917815379,0.16,59465.0,59464.0,0.063054]
[1723917815575,0.16,59465.0,59464.0,0.156054]
[1723917816086,0.16,59465.0,59464.0,0.157054]
[1723917816487,0.16,59465.0,59464.0,0.517854]
[1723917816686,0.0002523,59470.0,59469.0,0.063049]
[1723917816885,0.0002523,59470.0,59469.0,0.516849]
[1723917817998,0.0042523,59470.0,59469.0,0.516849]
[1723917818201,0.0092523,59470.0,59469.0,0.516849]
[1723917818390,0.0092523,59470.0,59469.0,0.58404121]
[1723917818701,0.0092523,59470.0,59469.0,0.516849]
[1723917820794,0.0092523,59470.0,59469.0,0.063049]
[1723917820985,0.063052,59467.0,59466.0,0.063051]
[1723917821489,0.063053,59465.0,59464.0,0.00979058]
[1723917821699,0.063054,59464.0,59463.0,0.063055]
[1723917823991,0.063054,59464.0,59463.0,0.066055]
[1723917824494,0.063054,59464.0,59463.0,0.068055]
[1723917825192,0.04116767,59469.0,59463.0,0.068055]
[1723917825193,0.063051,59467.0,59466.0,0.06305]
[1723917825392,0.063051,59467.0,59466.0,0.42385]
[1723917825599,0.063051,59467.0,59466.0,0.06305]
[1723917826393,0.063051,59467.0,59466.0,0.11344417]
[1723917826600,0.064051,59467.0,59466.0,0.15914417]
[1723917827106,0.064051,59467.0,59466.0,0.10875]
[1723917827286,0.066051,59467.0,59466.0,0.10875]
[1723917827691,0.066051,59467.0,59466.0,0.15914417]
[1723917829403,0.066051,59467.0,59466.0,0.10875]
[1723917832700,0.066051,59467.0,59466.0,0.15912345]
[1723917833207,0.066051,59467.0,59466.0,0.10875]
[1723917834205,0.236051,59467.0,59466.0,0.10875]
[1723917834411,0.329051,59467.0,59466.0,0.06305]
[1723917835907,0.329051,59467.0,59457.0,0.063061]
[1723917835908,0.063055,59463.0,59457.0,0.063061]
[1723917836115,0.51686,59458.0,59457.0,0.063061]
[1723917836414,0.59386,59458.0,59457.0,0.063061]
[1723917837203,0.59386,59458.0,59457.0,0.067061]
[1723917837204,0.59486,59458.0,59457.0,0.067061]
[1723917837706,0.59486,59458.0,59457.0,0.069061]
[1723917838106,0.68786,59458.0,59457.0,0.006]
[1723917838599,0.68786,59458.0,59457.0,0.004]
[1723917838809,0.68886,59458.0,59457.0,0.006]
[1723917843016,0.59586,59458.0,59457.0,0.006]
[1723917845117,0.59586,59458.0,59457.0,0.099]
[1723917845414,0.59586,59458.0,59457.0,0.162062]
[1723917845415,0.002,59458.0,59457.0,0.162062]
[1723917846014,0.142,59458.0,59457.0,0.162062]
[1723917846316,0.002,59458.0,59457.0,0.162062]
[1723917847110,0.002,59458.0,59457.0,0.069062]
[1723917847306,0.002,59458.0,59457.0,0.162062]
[1723917849717,0.002,59458.0,59457.0,0.21244421]
[1723917849916,0.002,59458.0,59457.0,0.11944421]
[1723917850112,0.002,59458.0,59457.0,0.069062]
[1723917853711,0.002,59458.0,59457.0,0.11944421]
[1723917853911,0.002,59458.0,59457.0,0.069062]
[1723917854422,0.002,59458.0,59457.0,0.132124]
[1723917854614,0.0002523,59470.0,59469.0,0.063049]
[1723917854814,0.1402523,59470.0,59469.0,0.063049]
[1723917856232,0.1442523,59470.0,59469.0,0.063049]
[1723917856715,0.1492523,59470.0,59469.0,0.063049]
[1723917858724,0.1492523,59470.0,59469.0,0.07305733]
[1723917861223,0.0092523,59470.0,59469.0,0.07305733]
[1723917864735,0.1792523,59470.0,59469.0,0.07305733]
[1723917875834,0.1792523,59470.0,59469.0,0.12338208]
[1723917876338,0.1792523,59470.0,59469.0,0.07305733]
[1723917877341,0.1792523,59470.0,59469.0,0.43385733]
[1723917878341,0.1792523,59470.0,59469.0,0.52685733]
[1723917878842,0.1792523,59470.0,59469.0,0.16605733]
[1723917879145,0.1792523,59470.0,59469.0,0.52685733]
[1723917880141,0.1792523,59470.0,59469.0,0.16605733]
[1723917880537,0.1792523,59470.0,59469.0,0.52685733]
[1723917880735,0.0092523,59470.0,59469.0,0.52685733]
[1723917880938,0.0092523,59470.0,59469.0,0.16605733]
[1723917881138,0.0092523,59470.0,59469.0,0.52685733]
[1723917881335,0.0092523,59470.0,59469.0,0.58990633]
[1723917881547,0.0092523,59470.0,59469.0,0.62691259]
[1723917881744,0.3608,59478.0,59477.0,0.06304]
[1723917882844,0.423839,59478.0,59477.0,0.06304]
[1723917883543,0.437839,59478.0,59477.0,0.06304]
[1723917883940,0.450839,59478.0,59477.0,0.06404]
[1723917884747,0.543839,59478.0,59477.0,0.06404]
[1723917885948,0.543839,59478.0,59477.0,0.1144102]
[1723917886148,0.183039,59478.0,59477.0,0.1144102]
[1723917886449,0.543839,59478.0,59477.0,0.1144102]
[1723917886651,0.450839,59478.0,59477.0,0.1144102]
[1723917887154,0.450839,59478.0,59477.0,0.06404]
[1723917888348,0.543839,59478.0,59477.0,0.06404]
[1723917890453,0.183039,59478.0,59477.0,0.06404]
[1723917890857,0.543839,59478.0,59477.0,0.06404]
[1723917891660,0.183039,59478.0,59477.0,0.06404]
[1723917891961,0.543839,59478.0,59477.0,0.06404]
[1723917893149,0.183039,59478.0,59477.0,0.06404]
[1723917893350,0.543839,59478.0,59477.0,0.06404]
[1723917894044,0.183039,59478.0,59477.0,0.06404]
[1723917894266,0.543839,59478.0,59477.0,0.06404]
[1723917894760,0.183039,59478.0,59477.0,0.06404]
[1723917895052,0.543839,59478.0,59477.0,0.06404]
[1723917895245,0.183039,59478.0,59477.0,0.06404]
[1723917895650,0.543839,59478.0,59477.0,0.06404]
[1723917896250,0.183039,59478.0,59477.0,0.06404]
[1723917896447,0.543839,59478.0,59477.0,0.06404]
[1723917897649,0.183039,59478.0,59477.0,0.06404]
[1723917897851,0.543839,59478.0,59477.0,0.06404]
[1723917898562,0.183039,59478.0,59477.0,0.06404]
[1723917898761,0.543839,59478.0,59477.0,0.06404]
[1723917901553,0.183039,59478.0,59477.0,0.06404]
[1723917901864,0.543839,59478.0,59477.0,0.06404]
[1723917903057,0.183039,59478.0,59477.0,0.06404]
[1723917903265,0.543839,59478.0,59477.0,0.06404]
[1723917903456,0.450839,59478.0,59477.0,0.06404]
[1723917904863,0.3878,59478.0,59477.0,0.06404]
[1723917905055,0.3878,59478.0,59477.0,0.2074102]
[1723917905364,0.3878,59478.0,59477.0,0.15704]
[1723917909667,0.027,59478.0,59477.0,0.15704]
[1723917917081,0.027,59478.0,59477.0,0.06404]
[1723917917389,0.027,59478.0,59477.0,0.15704]
[1723917917987,0.027,59478.0,59477.0,0.20744947]
[1723917918792,0.027,59478.0,59477.0,0.15704]
[1723917920086,0.333039,59478.0,59477.0,0.001]
[1723917920682,0.396078,59478.0,59477.0,0.001]
[1723917920983,0.063051,59467.0,59466.0,0.05041445]
[1723917921286,0.063053,59465.0,59464.0,0.05041445]
[1723917921494,0.063055,59463.0,59462.0,0.11347045]
[1723917921682,0.063055,59463.0,59462.0,0.20647045]
[1723917922389,0.063055,59463.0,59462.0,0.156056]
[1723917923590,0.063055,59463.0,59462.0,0.160056]
[1723917924795,0.063055,59463.0,59462.0,0.067056]
[1723917925288,0.063055,59463.0,59462.0,0.070056]
[1723917926001,0.0732639,59463.0,59462.0,0.070056]
[1723917926295,0.0732639,59463.0,59462.0,0.163056]
[1723917926296,0.05374283,59463.0,59462.0,0.163056]
[1723917928190,0.05374283,59463.0,59462.0,0.070056]
[1723917928389,0.05374283,59463.0,59462.0,0.163056]
[1723917930106,0.3608,59466.0,59464.0,0.063053]
[1723917930296,0.423852,59466.0,59465.0,0.093]
[1723917932111,0.423852,59466.0,59465.0,0.156053]
[1723917932598,0.423852,59466.0,59465.0,0.157053]
[1723917933308,0.063052,59466.0,59465.0,0.157053]
[1723917933501,0.423852,59466.0,59465.0,0.157053]
[1723917937913,0.063052,59466.0,59465.0,0.157053]
[1723917938214,0.423852,59466.0,59465.0,0.157053]
[1723917941808,0.063052,59466.0,59465.0,0.157053]
[1723917944713,0.063052,59466.0,59465.0,0.064053]
[1723917944916,0.156052,59466.0,59465.0,0.001]
[1723917945214,0.326052,59466.0,59465.0,0.001]
[1723917947211,0.326052,59466.0,59465.0,0.064053]
[1723917948121,0.686852,59466.0,59465.0,0.064053]
[1723917951611,0.36722281,59466.0,59465.0,0.064053]
[1723917951823,0.72802281,59466.0,59465.0,0.064053]
[1723917952515,0.72802279,59466.0,59465.0,0.064053]
[1723917953110,0.686852,59466.0,59465.0,0.064053]
[1723917953512,0.326052,59466.0,59465.0,0.064053]
[1723917953713,0.686852,59466.0,59465.0,0.064053]
[1723917953911,0.686852,59466.0,59465.0,0.001]
[1723917954919,0.326052,59466.0,59465.0,0.001]
[1723917955127,0.686852,59466.0,59465.0,0.001]
[1723917955825,0.326052,59466.0,59465.0,0.001]
[1723917956026,0.686852,59466.0,59465.0,0.001]
[1723917956327,0.326052,59466.0,59465.0,0.001]
[1723917956528,0.686852,59466.0,59465.0,0.001]
[1723917957320,0.326052,59466.0,59465.0,0.001]
[1723917957534,0.686852,59466.0,59465.0,0.001]
[1723917959924,0.326052,59466.0,59465.0,0.001]
[1723917960128,0.686852,59466.0,59465.0,0.001]
[1723917961529,0.593852,59466.0,59465.0,0.001]
[1723917961731,0.686852,59466.0,59465.0,0.001]
[1723917964635,0.326052,59466.0,59465.0,0.001]
[1723917964936,0.686852,59466.0,59465.0,0.001]
[1723917965233,0.326052,59466.0,59465.0,0.001]
[1723917965434,0.686852,59466.0,59465.0,0.001]
[1723917966521,0.326052,59466.0,59465.0,0.001]
[1723917966832,0.686852,59466.0,59465.0,0.001]
[1723917968825,0.326052,59466.0,59465.0,0.001]
[1723917969035,0.686852,59466.0,59465.0,0.001]
[1723917972641,0.326052,59466.0,59465.0,0.001]
[1723917972845,0.686852,59466.0,59465.0,0.001]
[1723917974542,0.326052,59466.0,59465.0,0.001]
[1723917974941,0.686852,59466.0,59465.0,0.001]
[1723917977636,0.326052,59466.0,59465.0,0.001]
[1723917977931,0.686852,59466.0,59465.0,0.001]
[1723917979146,0.686852,59466.0,59459.0,0.06709967]
[1723917979147,0.063059,59459.0,59458.0,0.05041445]
[1723917979443,0.12612,59458.0,59457.0,0.02968571]
[1723917979637,0.28612,59458.0,59457.0,0.02968571]
[1723917980229,0.27812,59458.0,59457.0,0.02968571]
[1723917981244,0.27912,59458.0,59457.0,0.03768571]
[1723917982038,0.27912,59458.0,59457.0,0.0082523]
[1723917982039,0.34218,59458.0,59457.0,0.0082523]
[1723917982630,0.34318,59458.0,59457.0,0.0142523]
[1723917984834,0.35334454,59458.0,59457.0,0.0142523]
[1723917985043,0.71414454,59458.0,59457.0,0.0142523]
[1723917986938,0.75532518,59458.0,59457.0,0.0142523]
[1723917987237,1.65988518,59458.0,59457.0,0.0142523]
[1723917987432,1.65988518,59458.0,59457.0,3e-07]
[1723917987643,1.70038518,59458.0,59457.0,3e-07]
[1723917989744,1.19682518,59458.0,59457.0,3e-07]
[1723917990048,1.15564454,59458.0,59457.0,3e-07]
[1723917990259,1.55564454,59458.0,59457.0,3e-07]
[1723917991151,1.15564454,59458.0,59457.0,3e-07]
[1723917991347,1.55564454,59458.0,59457.0,3e-07]
[1723917993944,1.61870454,59458.0,59457.0,3e-07]
[1723917997051,0.063078,59441.0,59440.0,0.0954]
[1723917997252,0.686878,59441.0,59440.0,0.0954]
[1723917999349,0.687878,59441.0,59440.0,0.0954]
[1723917999857,0.688878,59441.0,59440.0,0.0954]
[1723918000053,0.687878,59441.0,59440.0,0.0954]
[1723918000260,0.688878,59441.0,59440.0,0.0954]
[1723918000948,0.595878,59441.0,59440.0,0.0954]
[1723918009064,0.3628,59441.0,59440.0,0.251479]
[1723918009253,0.3628,59441.0,59440.0,0.756199]
[1723918010352,0.002,59441.0,59440.0,1.156199]
[1723918010554,0.002,59441.0,59440.0,1.20647341]
[1723918011453,0.002,59441.0,59440.0,1.156199]
[1723918014057,0.002,59441.0,59440.0,0.756199]
[1723918014264,0.002,59441.0,59440.0,1.156199]
[1723918015669,0.3608,59448.0,59447.0,0.063072]
[1723918015964,0.3608,59448.0,59447.0,0.20648868]
[1723918016163,0.3608,59448.0,59447.0,0.156072]
[1723918016554,0.423871,59448.0,59447.0,0.20647904]
[1723918016864,0.3608,59448.0,59447.0,0.20647904]
[1723918017160,0.3618,59448.0,59447.0,0.20647904]
[1723918017858,0.001,59448.0,59447.0,0.20647904]
[1723918018061,0.002,59448.0,59447.0,0.20647904]
[1723918018456,0.002,59448.0,59441.0,0.08379068]
[1723918018457,0.265,59448.0,59442.0,0.063077]
[1723918018759,0.4538,59445.0,59442.0,0.063077]
[1723918019061,0.6138,59445.0,59442.0,0.063077]
[1723918019767,0.6138,59445.0,59442.0,0.065077]
[1723918020155,0.063076,59443.0,59442.0,0.065077]
[1723918020356,0.223076,59443.0,59442.0,0.065077]
[1723918020762,0.223076,59443.0,59442.0,0.063077]
[1723918020965,0.223076,59443.0,59442.0,0.065077]
[1723918021662,0.223076,59443.0,59442.0,0.11547854]
[1723918022066,0.223076,59443.0,59442.0,0.065077]
[1723918022257,0.223076,59443.0,59442.0,0.11547854]
[1723918022470,0.223076,59443.0,59442.0,0.065077]
[1723918022662,0.225076,59443.0,59442.0,0.11447854]
[1723918024569,0.225076,59443.0,59442.0,0.064077]
[1723918025162,0.225076,59443.0,59442.0,0.11447854]
[1723918027456,0.225076,59443.0,59442.0,0.064077]
[1723918028057,0.585876,59443.0,59442.0,0.064077]
[1723918031061,0.648952,59443.0,59442.0,0.001]
[1723918032483,1.153632,59443.0,59442.0,0.001]
[1723918032661,0.648952,59443.0,59442.0,0.001]
[1723918032865,1.216708,59443.0,59442.0,0.001]
[1723918034571,0.712028,59443.0,59442.0,0.001]
[1723918036577,1.616708,59443.0,59442.0,0.001]
[1723918038076,1.623708,59443.0,59442.0,0.001]
[1723918039277,0.063091,59429.0,59428.0,0.0481]
[1723918039578,0.063091,59429.0,59425.0,0.11350593]
[1723918039579,0.253,59429.0,59425.0,0.11350593]
[1723918039876,0.093,59426.0,59425.0,0.063095]
[1723918040083,0.253,59426.0,59425.0,0.063095]
[1723918040679,0.69056,59432.0,59430.0,0.06309]
[1723918040980,0.912488,59432.0,59431.0,0.0493]
[1723918041274,0.912488,59432.0,59431.0,0.112389]
[1723918041870,0.7574,59432.0,59431.0,0.112389]
[1723918043078,0.7584,59432.0,59431.0,0.112389]
[1723918043675,0.8514,59432.0,59431.0,0.112389]
[1723918043871,0.8504,59432.0,59431.0,0.112389]
[1723918045581,0.913488,59432.0,59431.0,0.112389]
[1723918046074,0.913488,59432.0,59431.0,0.0493]
[1723918047274,0.063091,59429.0,59428.0,0.063092]
[1723918047590,0.306091,59429.0,59428.0,0.063092]
[1723918048484,0.151,59429.0,59428.0,0.063092]
[1723918049576,0.152,59429.0,59428.0,0.063092]
[1723918052186,0.215091,59429.0,59428.0,0.063092]
[1723918054681,0.215091,59429.0,59428.0,0.156092]
[1723918057279,0.215091,59429.0,59428.0,0.20650293]
[1723918057681,0.215091,59429.0,59428.0,0.156092]
[1723918058684,0.215091,59429.0,59428.0,0.20649063]
[1723918058896,0.215091,59429.0,59428.0,0.156092]
[1723918059087,0.152,59429.0,59424.0,0.11392224]
[1723918059292,0.093,59426.0,59424.0,0.11392224]
[1723918059489,0.263,59426.0,59424.0,0.11392224]
[1723918059791,0.263,59426.0,59424.0,0.0467]
[1723918060193,0.063095,59425.0,59424.0,0.0467]
[1723918060393,0.063097,59423.0,59421.0,0.05057695]
[1723918060694,0.219198,59422.0,59421.0,0.00015117]
[1723918060880,0.379198,59422.0,59421.0,0.00015117]
[1723918063086,0.316099,59422.0,59421.0,0.00015117]
[1723918063285,0.223099,59422.0,59421.0,0.00015117]
[1723918063591,0.316099,59422.0,59421.0,0.00015117]
[1723918064984,0.223099,59422.0,59421.0,0.00015117]
[1723918065387,0.316099,59422.0,59421.0,0.00015117]
[1723918081403,0.379198,59422.0,59421.0,0.00015117]
[1723918082399,1.29247849,59422.0,59421.0,0.00015117]
[1723918084300,1.284078,59422.0,59421.0,0.00015117]
[1723918084610,0.379198,59422.0,59421.0,0.00015117]
[1723918085010,0.884078,59422.0,59421.0,0.00015117]
[1723918085599,1.605678,59422.0,59421.0,0.00015117]
[1723918085994,1.61426207,59422.0,59421.0,0.00015117]
[1723918086906,1.605678,59422.0,59421.0,0.00015117]
[1723918087505,1.61399011,59422.0,59421.0,0.00015117]
[1723918088005,2.07708911,59422.0,59421.0,0.00015117]
[1723918088204,1.04601111,59422.0,59397.0,0.08379068]
[1723918088397,1.04601111,59422.0,59402.0,0.05040579]
[1723918088398,0.51692,59403.0,59402.0,0.05040579]
[1723918088895,0.51692,59403.0,59399.0,0.157322]
[1723918088896,0.06312,59402.0,59401.0,0.05040579]
[1723918089410,0.063271,59402.0,59401.0,0.05040579]
[1723918089605,0.063271,59402.0,59401.0,0.09990579]
[1723918089908,0.000151,59402.0,59401.0,0.25602679]
[1723918090121,0.000151,59402.0,59401.0,0.205621]
[1723918090304,0.000151,59402.0,59401.0,0.25600867]
[1723918090702,0.000151,59402.0,59401.0,0.205621]
[1723918091799,0.001151,59402.0,59401.0,0.205621]
[1723918092409,0.171151,59402.0,59401.0,0.205621]
[1723918092628,0.172151,59402.0,59401.0,0.205621]
[1723918094807,0.172151,59402.0,59401.0,0.112621]
[1723918095313,0.172151,59402.0,59401.0,0.16298664]
[1723918095515,0.172151,59402.0,59401.0,0.112621]
[1723918095714,0.172151,59402.0,59401.0,0.2559836]
[1723918095915,0.172151,59402.0,59401.0,0.205621]
[1723918098019,0.172151,59402.0,59401.0,0.25598109]
[1723918098211,0.172151,59402.0,59401.0,0.205621]
[1723918098409,0.235271,59402.0,59401.0,0.063121]
[1723918098715,0.328271,59402.0,59401.0,0.063121]
[1723918098915,0.328271,59402.0,59401.0,0.158521]
[1723918099221,0.328271,59402.0,59401.0,0.20887929]
[1723918099720,0.328271,59402.0,59401.0,0.158521]
[1723918102712,0.328271,59402.0,59401.0,0.20887929]
[1723918103606,0.235271,59402.0,59401.0,0.158521]
[1723918103818,0.235271,59402.0,59401.0,0.20888823]
[1723918104016,0.235271,59402.0,59401.0,0.158521]
[1723918104321,0.3610523,59408.0,59407.0,0.063114]
[1723918104516,0.0002523,59408.0,59407.0,0.20648521]
[1723918104713,0.1602523,59408.0,59407.0,0.11348521]
[1723918104916,0.1563653,59408.0,59407.0,0.11348521]
[1723918105111,0.0633653,59408.0,59407.0,0.11348521]
[1723918105313,0.2033653,59408.0,59405.0,0.06722224]
[1723918105516,0.093,59406.0,59403.0,0.05038107]
[1723918105814,0.093,59406.0,59401.0,0.0954]
[1723918105815,0.06312,59402.0,59401.0,0.0954]
[1723918106013,0.15612,59402.0,59401.0,0.0954]
[1723918106814,0.063122,59401.0,59400.0,0.063122]
[1723918107126,0.213122,59401.0,59400.0,0.063122]
[1723918107419,0.213122,59401.0,59400.0,0.11350307]
[1723918108213,0.214122,59401.0,59400.0,0.11350307]
[1723918108422,0.214122,59401.0,59400.0,0.11450307]
[1723918109419,0.214122,59401.0,59400.0,0.064122]
[1723918109918,0.214122,59401.0,59400.0,0.001]
[1723918111113,0.063122,59400.0,59399.0,0.111222]
[1723918112424,0.066122,59400.0,59399.0,0.17844424]
[1723918112924,0.066122,59400.0,59399.0,0.27144424]
[1723918113618,0.068122,59400.0,59399.0,0.27144424]
[1723918113819,0.068122,59400.0,59399.0,0.17844424]
[1723918115424,0.228122,59400.0,59399.0,0.17844424]
[1723918116336,0.228122,59400.0,59399.0,0.111222]
[1723918117328,0.228122,59400.0,59399.0,0.17851922]
[1723918117632,0.228122,59400.0,59399.0,0.111222]
[1723918117833,0.228122,59400.0,59399.0,0.17851922]
[1723918118035,0.228122,59400.0,59399.0,0.111222]
[1723918121426,0.228122,59400.0,59399.0,0.17851411]
[1723918122240,0.228122,59400.0,59399.0,0.111222]
[1723918124129,0.228122,59400.0,59399.0,0.0481]
[1723918125636,0.228122,59400.0,59399.0,0.09856826]
[1723918126133,0.228122,59400.0,59399.0,0.0481]
[1723918126538,0.228122,59400.0,59399.0,0.0985666]
[1723918126925,0.228122,59400.0,59399.0,0.0481]
[1723918129429,0.063123,59399.0,59394.0,0.36168]
[1723918129634,0.063126,59396.0,59395.0,0.104346]
[1723918129837,0.156126,59396.0,59395.0,0.03705351]
[1723918130035,0.063127,59395.0,59394.0,0.42897249]
[1723918130235,0.063127,59395.0,59394.0,0.46514653]
[1723918131031,0.063127,59395.0,59394.0,0.46614653]
[1723918131425,0.063127,59395.0,59394.0,0.42909249]
[1723918131637,0.063127,59395.0,59394.0,0.46614653]
[1723918133230,0.063127,59395.0,59394.0,0.39885404]
[1723918134131,0.063127,59395.0,59394.0,0.03805404]
[1723918134332,0.063127,59395.0,59394.0,0.001]
[1723918134534,0.063127,59395.0,59394.0,0.03805406]
[1723918135040,0.063127,59395.0,59394.0,0.06829249]
[1723918135435,0.063127,59395.0,59394.0,0.001]
[1723918136340,0.063127,59395.0,59394.0,0.0751053]
[1723918136537,0.063127,59395.0,59394.0,0.03805265]
[1723918136729,0.063127,59395.0,59394.0,0.07510506]
[1723918136934,0.063127,59395.0,59394.0,0.001]
[1723918137131,0.063127,59395.0,59394.0,0.13823318]
[1723918138342,0.063123,59400.0,59399.0,0.063122]
[1723918138545,0.223123,59400.0,59399.0,0.063122]
[1723918138735,0.23318478,59400.0,59399.0,0.11359303]
[1723918138942,0.23318478,59400.0,59399.0,0.063122]
[1723918139731,0.23918478,59400.0,59399.0,0.063122]
[1723918140533,0.166,59400.0,59399.0,0.063122]
[1723918140845,0.166,59400.0,59399.0,0.7352621]
[1723918140846,0.01,59400.0,59399.0,0.7352621]
[1723918141340,0.01,59400.0,59399.0,0.94728868]
[1723918141544,0.01,59400.0,59399.0,0.863498]
[1723918141845,0.0633663,59408.0,59407.0,0.063114]
[1723918142145,0.23322331,59408.0,59407.0,0.11357291]
[1723918142544,0.0633663,59408.0,59407.0,0.20897291]
[1723918143042,0.0773663,59408.0,59407.0,0.20897291]
[1723918143244,0.0773663,59408.0,59407.0,0.158514]
[1723918143740,0.0773663,59408.0,59407.0,0.20897291]
[1723918143938,0.0753663,59408.0,59407.0,0.16845332]
[1723918144534,0.0122523,59408.0,59407.0,0.26145332]
[1723918144744,0.0122523,59408.0,59407.0,0.31191223]
[1723918144940,0.0252523,59408.0,59407.0,0.26145332]
[1723918145132,0.0252523,59408.0,59407.0,0.32873186]
[1723918145334,0.0252523,59408.0,59407.0,0.26145332]
[1723918145535,0.0472,59421.0,59418.0,0.063102]
[1723918145737,0.063102,59419.0,59418.0,0.063102]
[1723918146043,0.203102,59419.0,59418.0,0.063102]
[1723918146843,0.203102,59419.0,59418.0,0.001]
[1723918147346,0.063102,59419.0,59418.0,0.001]
[1723918147737,0.077102,59419.0,59418.0,0.001]
[1723918147937,0.077102,59419.0,59418.0,0.1425]
[1723918148144,0.077102,59419.0,59418.0,0.205603]
[1723918148935,0.077102,59419.0,59418.0,0.204603]
[1723918149143,0.080102,59419.0,59418.0,0.205603]
[1723918150348,0.080102,59419.0,59418.0,0.21576902]
[1723918150944,0.017,59419.0,59418.0,0.21576902]
[1723918152845,0.220102,59419.0,59418.0,0.01116602]
[1723918153146,0.220102,59419.0,59418.0,0.001]
[1723918153147,0.580902,59419.0,59418.0,0.001]
[1723918153651,0.220102,59419.0,59418.0,0.001]
[1723918154755,0.580902,59419.0,59418.0,0.001]
[1723918155747,0.644004,59419.0,59418.0,0.001]
[1723918159348,0.644004,59419.0,59413.0,0.00025252]
[1723918159349,0.126214,59414.0,59413.0,0.00025252]
[1723918159554,0.223107,59414.0,59413.0,0.00025252]
[1723918160656,0.237107,59414.0,59413.0,0.00125252]
[1723918161757,0.251107,59414.0,59413.0,0.00225252]
[1723918163854,0.251107,59414.0,59413.0,0.06536052]
[1723918164660,0.251107,59414.0,59413.0,0.00225252]
[1723918164855,0.251107,59414.0,59413.0,0.06536052]
[1723918165163,0.344107,59414.0,59413.0,0.06536052]
[1723918166162,0.091107,59414.0,59413.0,0.15836052]
[1723918168359,0.091107,59414.0,59413.0,0.20877506]
[1723918168562,0.091107,59414.0,59413.0,0.20876818]
[1723918169059,0.091107,59414.0,59413.0,0.11576818]
[1723918169256,0.091107,59414.0,59413.0,0.11576964]
[1723918169463,0.091107,59414.0,59413.0,0.06536052]
[1723918173174,0.184107,59414.0,59413.0,0.13263906]
[1723918173364,0.334107,59414.0,59413.0,0.06536052]
[1723918174768,0.334107,59414.0,59413.0,0.13263906]
[1723918174971,0.334107,59414.0,59413.0,0.06536052]